[Event "African Championship"]
[Site "followchess.com"]
[Date "2021.05.20"]
[Round "3"]
[White "Amin, Bassem"]
[Black "Kawuma, Patrick"]
[Result "1/2-1/2"]
[ECO "B31"]
[WhiteElo "2701"]
[BlackElo "2323"]
[PlyCount "80"]
[EventDate "2021.??.??"]
[TimeControl "7200+30"]
[WhiteClock "0:30:56"]
[BlackClock "0:36:21"]

1. e4 {[%emt 0:30:17]} c5 {[%emt 0:29:42]} 2. Nf3 {[%emt 0:00:08]} Nc6 {
[%emt 0:00:21]} 3. Bb5 {[%emt 0:00:11]} g6 {[%emt 0:00:08]} 4. O-O {[%emt 0:00:
37]} Bg7 {[%emt 0:00:32]} 5. c3 {[%emt 0:00:32]} e5 {[%emt 0:03:07]} 6. d4 {
[%emt 0:00:34]} exd4 {[%emt 0:05:53]} 7. cxd4 {[%emt 0:00:09]} cxd4 {[%emt 0:
01:16]} 8. Bf4 {[%emt 0:00:08]} a6 {[%emt 0:11:41]} 9. Ba4 {[%emt 0:10:22]}
Nge7 {[%emt 0:06:17]} 10. Bd6 {[%emt 0:00:46]} b5 {[%emt 0:00:52]} 11. Bb3 {
[%emt 0:00:25]} O-O {[%emt 0:00:08]} 12. Nbd2 {[%emt 0:14:09]} Bb7 {[%emt 0:10:
04]} 13. Rc1 {[%emt 0:01:29]} Rc8 {[%emt 0:08:03]} 14. e5 {[%emt 0:11:47]} h6 {
[%emt 0:15:03]} 15. Ne4 {[%emt 0:03:16]} Nxe5 {[%emt 0:01:45]} 16. Nxe5 {
[%emt 0:14:14]} Bxe4 {[%emt 0:16:35]} 17. Nxf7 {[%emt 0:19:53]} Rxf7 {[%emt 0:
02:20]} 18. Bxe7 {[%emt 0:00:27]} Rxc1 {[%emt 0:03:25]} 19. Bxd8 {[%emt 0:00:
20]} Rxd1 {[%emt 0:00:13]} 20. Bxf7+ {[%emt 0:00:02]} Kxf7 {[%emt 0:00:14]} 21.
Rxd1 {[%emt 0:00:02]} Bc2 {[%emt 0:00:09]} 22. Re1 {[%emt 0:00:06]} Bf8 {
[%emt 0:12:38]} 23. Ba5 {[%emt 0:13:18]} b4 {[%emt 0:00:10]} 24. Re2 {[%emt 0:
01:39]} d3 {[%emt 0:00:23]} 25. Rd2 {[%emt 0:00:00]} Bg7 {[%emt 0:00:53]} 26.
Bxb4 {[%emt 0:01:13]} Bxb2 {[%emt 0:00:02]} 27. f3 {[%emt 0:02:08]} Bc1 {
[%emt 0:00:36]} 28. Kf2 {[%emt 0:00:03]} Bxd2 {[%emt 0:00:44]} 29. Bxd2 {
[%emt 0:00:01]} h5 {[%emt 0:00:23]} 30. Ke3 {[%emt 0:00:03]} Ke6 {[%emt 0:00:
12]} 31. Kd4 {[%emt 0:00:02]} Kd6 {[%emt 0:00:33]} 32. h3 {[%emt 0:00:39]} Bb1
{[%emt 0:00:15]} 33. a3 {[%emt 0:00:28]} Bc2 {[%emt 0:00:09]} 34. g4 {[%emt 0:
00:10]} hxg4 {[%emt 0:00:30]} 35. fxg4 {[%emt 0:00:08]} Ke6 {[%emt 0:01:06]}
36. Ke4 {[%emt 0:00:39]} Kd6 {[%emt 0:01:01]} 37. Kf4 {[%emt 0:02:25]} Ke6 {
[%emt 0:00:07]} 38. Kg5 {[%emt 0:00:18]} Kf7 {[%emt 0:00:06]} 39. h4 {[%emt 0:
00:14]} Bd1 {[%emt 0:00:35]} 40. Bc3 {[%emt 0:00:00]} Be2 {[%emt 0:00:00]}
1/2-1/2

[Event "African Championship"]
[Site "followchess.com"]
[Date "2021.05.20"]
[Round "3"]
[White "Barrish, Daniel"]
[Black "Adly, Ahmed"]
[Result "0-1"]
[ECO "A57"]
[WhiteElo "2306"]
[BlackElo "2615"]
[PlyCount "122"]
[EventDate "2021.??.??"]
[TimeControl "7200+30"]
[WhiteClock "0:28:03"]
[BlackClock "0:01:50"]

1. d4 {[%emt 0:29:47]} Nf6 {[%emt 0:29:36]} 2. c4 {[%emt 0:00:19]} c5 {[%emt 0:
00:06]} 3. d5 {[%emt 0:00:15]} b5 {[%emt 0:00:05]} 4. cxb5 {[%emt 0:00:35]} a6
{[%emt 0:00:02]} 5. e3 {[%emt 0:00:29]} axb5 {[%emt 0:00:32]} 6. Bxb5 {[%emt 0:
00:46]} Qa5+ {[%emt 0:00:06]} 7. Nc3 {[%emt 0:00:19]} Bb7 {[%emt 0:00:03]} 8.
Bd2 {[%emt 0:06:09]} Qb6 {[%emt 0:00:07]} 9. Nf3 {[%emt 0:11:55]} Nxd5 {
[%emt 0:00:29]} 10. a4 {[%emt 0:01:00]} Nb4 {[%emt 0:05:37]} 11. O-O {[%emt 0:
02:39]} g6 {[%emt 0:00:54]} 12. e4 {[%emt 0:02:39]} Bg7 {[%emt 0:01:11]} 13.
Bg5 {[%emt 0:05:41]} Ba6 {[%emt 0:28:04]} 14. Rc1 {[%emt 0:15:21]} N8c6 {
[%emt 0:08:46]} 15. Nd5 {[%emt 0:07:25]} Nxd5 {[%emt 0:01:56]} 16. exd5 {
[%emt 0:00:43]} Bxb5 {[%emt 0:00:08]} 17. axb5 {[%emt 0:00:26]} Nd4 {[%emt 0:
01:17]} 18. Re1 {[%emt 0:08:55]} e6 {[%emt 0:05:53]} 19. b4 {[%emt 0:08:07]}
O-O {[%emt 0:12:05]} 20. bxc5 {[%emt 0:02:37]} Nxf3+ {[%emt 0:00:46]} 21. Qxf3
{[%emt 0:00:06]} Qxb5 {[%emt 0:00:01]} 22. Be7 {[%emt 0:05:09]} Rfc8 {[%emt 0:
01:45]} 23. dxe6 {[%emt 0:01:51]} fxe6 {[%emt 0:04:19]} 24. Rb1 {[%emt 0:00:36]
} Qa4 {[%emt 0:00:59]} 25. Red1 {[%emt 0:13:52]} Ra7 {[%emt 0:01:36]} 26. h3 {
[%emt 0:01:56]} Qc2 {[%emt 0:04:23]} 27. Rbc1 {[%emt 0:02:54]} Qf5 {[%emt 0:00:
11]} 28. Rd3 {[%emt 0:00:52]} Qxf3 {[%emt 0:11:36]} 29. Rxf3 {[%emt 0:00:07]}
Bd4 {[%emt 0:00:03]} 30. Rc2 {[%emt 0:00:55]} d5 {[%emt 0:01:18]} 31. Bd6 {
[%emt 0:00:10]} Ra1+ {[%emt 0:01:09]} 32. Kh2 {[%emt 0:00:09]} Ra6 {[%emt 0:00:
01]} 33. Be7 {[%emt 0:01:07]} Rc7 {[%emt 0:01:43]} 34. Bf8 {[%emt 0:00:22]}
Rac6 {[%emt 0:02:37]} 35. Re2 {[%emt 0:00:33]} Rf7 {[%emt 0:00:46]} 36. Bd6 {
[%emt 0:00:30]} Rxf3 {[%emt 0:00:34]} 37. gxf3 {[%emt 0:00:08]} Kf7 {[%emt 0:
00:01]} 38. Rc2 {[%emt 0:00:38]} Kf6 {[%emt 0:00:44]} 39. f4 {[%emt 0:00:50]}
Kf5 {[%emt 0:00:12]} 40. Kg3 {[%emt 0:00:00]} Ke4 {[%emt 0:00:00]} 41. Re2+ {
[%emt 0:00:00]} Kd3 {[%emt 0:00:00]} 42. Kf3 {[%emt 0:00:00]} Bxc5 {[%emt 0:00:
00]} 43. Bxc5 {[%emt 0:00:00]} Rxc5 {[%emt 0:00:00]} 44. Rxe6 {[%emt 0:00:00]}
d4 {[%emt 0:00:00]} 45. Re5 {[%emt 0:00:00]} Rc7 {[%emt 0:00:00]} 46. h4 {
[%emt 0:00:00]} Kc2 {[%emt 0:00:00]} 47. Re2+ {[%emt 0:00:00]} Kc3 {[%emt 0:00:
00]} 48. Re1 {[%emt 0:00:00]} Ra7 {[%emt 0:00:00]} 49. Rc1+ {[%emt 0:00:00]}
Kd2 {[%emt 0:00:00]} 50. Rc6 {[%emt 0:00:00]} d3 {[%emt 0:00:00]} 51. h5 {
[%emt 0:00:00]} gxh5 {[%emt 0:00:00]} 52. f5 {[%emt 0:00:00]} Kd1 {[%emt 0:00:
00]} 53. f6 {[%emt 0:00:04]} d2 {[%emt 0:00:00]} 54. Re6 {[%emt 0:01:09]} Rc7 {
[%emt 0:00:00]} 55. Re7 {[%emt 0:00:53]} Rc8 {[%emt 0:00:00]} 56. Ra7 {[%emt 0:
05:56]} Kc2 {[%emt 0:00:00]} 57. Ra2+ {[%emt 0:00:08]} Kd3 {[%emt 0:00:00]} 58.
Ra3+ {[%emt 0:00:32]} Rc3 {[%emt 0:00:00]} 59. Ra1 {[%emt 0:00:23]} Rc1 {
[%emt 0:00:00]} 60. Ra3+ {[%emt 0:00:11]} Kc4 {[%emt 0:00:00]} 61. Ra4+ {
[%emt 0:00:32]} Kd5 {[%emt 0:00:00]} 0-1

[Event "African Championship"]
[Site "followchess.com"]
[Date "2021.05.20"]
[Round "3"]
[White "Bellahcene, Bilel"]
[Black "Beukes, Dante M"]
[Result "1/2-1/2"]
[ECO "E71"]
[WhiteElo "2508"]
[BlackElo "2284"]
[PlyCount "119"]
[EventDate "2021.??.??"]
[TimeControl "7200+30"]
[WhiteClock "0:01:48"]
[BlackClock "0:13:52"]

1. d4 {[%emt 0:29:33]} Nf6 {[%emt 0:30:17]} 2. c4 {[%emt 0:00:03]} g6 {[%emt 0:
00:05]} 3. Nc3 {[%emt 0:00:03]} Bg7 {[%emt 0:00:06]} 4. e4 {[%emt 0:00:02]} d6
{[%emt 0:00:06]} 5. h3 {[%emt 0:00:03]} O-O {[%emt 0:00:07]} 6. Nf3 {[%emt 0:
00:02]} e5 {[%emt 0:00:16]} 7. d5 {[%emt 0:00:03]} Nh5 {[%emt 0:00:18]} 8. Nh2
{[%emt 0:00:03]} Qe7 {[%emt 0:02:50]} 9. g3 {[%emt 0:01:54]} Na6 {[%emt 0:02:
58]} 10. Be2 {[%emt 0:02:37]} f5 {[%emt 0:03:33]} 11. exf5 {[%emt 0:02:11]}
Rxf5 {[%emt 0:00:59]} 12. Ng4 {[%emt 0:01:11]} Rf8 {[%emt 0:07:48]} 13. Be3 {
[%emt 0:04:14]} Nf4 {[%emt 0:14:55]} 14. Kf1 {[%emt 0:23:15]} Nxe2 {[%emt 0:04:
01]} 15. Qxe2 {[%emt 0:00:03]} h5 {[%emt 0:06:54]} 16. Nh6+ {[%emt 0:14:28]}
Kh7 {[%emt 0:04:34]} 17. Qd2 {[%emt 0:00:04]} e4 {[%emt 0:22:41]} 18. Re1 {
[%emt 0:15:32]} Nc5 {[%emt 0:07:22]} 19. h4 {[%emt 0:02:50]} Nd3 {[%emt 0:07:
07]} 20. Re2 {[%emt 0:01:26]} Qe5 {[%emt 0:02:31]} 21. Kg2 {[%emt 0:14:44]}
Nxb2 {[%emt 0:05:36]} 22. Qxb2 {[%emt 0:01:21]} Qxc3 {[%emt 0:00:07]} 23. Qxc3
{[%emt 0:00:06]} Bxc3 {[%emt 0:00:06]} 24. g4 {[%emt 0:00:01]} Bg7 {[%emt 0:01:
49]} 25. g5 {[%emt 0:00:02]} b6 {[%emt 0:02:02]} 26. Rhe1 {[%emt 0:01:04]} Ba6
{[%emt 0:01:39]} 27. Rc1 {[%emt 0:00:01]} Rae8 {[%emt 0:00:16]} 28. a4 {
[%emt 0:00:09]} Bc8 {[%emt 0:01:10]} 29. a5 {[%emt 0:00:01]} Bd7 {[%emt 0:00:
24]} 30. Ra2 {[%emt 0:00:03]} Ra8 {[%emt 0:00:17]} 31. Rb1 {[%emt 0:01:10]} Bc3
{[%emt 0:00:59]} 32. Rb3 {[%emt 0:04:10]} Bxa5 {[%emt 0:00:48]} 33. c5 {
[%emt 0:00:06]} dxc5 {[%emt 0:00:25]} 34. Bxc5 {[%emt 0:00:16]} Rfe8 {[%emt 0:
00:36]} 35. Bd4 {[%emt 0:01:19]} a6 {[%emt 0:00:56]} 36. Bc3 {[%emt 0:02:17]}
Bxc3 {[%emt 0:00:26]} 37. Rxc3 {[%emt 0:00:01]} Re7 {[%emt 0:00:16]} 38. Kg3 {
[%emt 0:01:30]} Ra7 {[%emt 0:00:36]} 39. Rac2 {[%emt 0:02:48]} Ba4 {[%emt 0:00:
14]} 40. Rd2 {[%emt 0:00:00]} Bb5 {[%emt 0:00:00]} 41. Rd4 {[%emt 0:00:00]} Ra8
{[%emt 0:00:00]} 42. d6 {[%emt 0:00:00]} cxd6 {[%emt 0:00:00]} 43. Rxd6 {
[%emt 0:00:00]} Rb8 {[%emt 0:00:00]} 44. Re3 {[%emt 0:00:00]} Rbb7 {[%emt 0:00:
00]} 45. Rf6 {[%emt 0:00:00]} Bc4 {[%emt 0:00:00]} 46. Rc3 {[%emt 0:00:00]}
Rec7 {[%emt 0:00:00]} 47. Re3 {[%emt 0:00:00]} b5 {[%emt 0:00:00]} 48. Rxe4 {
[%emt 0:00:00]} b4 {[%emt 0:00:00]} 49. f4 {[%emt 0:00:00]} Bd3 {[%emt 0:01:40]
} 50. Re8 {[%emt 0:00:00]} Bb5 {[%emt 0:02:35]} 51. Ref8 {[%emt 0:00:00]} Bd3 {
[%emt 0:00:44]} 52. Rd8 {[%emt 0:00:00]} Rd7 {[%emt 0:01:11]} 53. Ra8 {[%emt 0:
02:40]} Ra7 {[%emt 0:00:48]} 54. Rb8 {[%emt 0:00:11]} Rab7 {[%emt 0:00:04]} 55.
Ra8 {[%emt 0:00:01]} Ra7 56. Rb8 Rab7 57. Ra8 b3 58. Rff8 Bc4 59. f5 gxf5 60.
Nxf5 1/2-1/2

[Event "African Championship"]
[Site "followchess.com"]
[Date "2021.05.20"]
[Round "3"]
[White "Kayonde, Andrew"]
[Black "Oragwu, Chukwunonso"]
[Result "0-1"]
[ECO "E91"]
[WhiteElo "2399"]
[BlackElo "2241"]
[PlyCount "75"]
[EventDate "2021.??.??"]
[TimeControl "7200+30"]
[WhiteClock "0:03:03"]
[BlackClock "0:00:38"]

1. Nf3 {[%emt 0:31:08]} Nf6 {[%emt 0:30:41]} 2. c4 {[%emt 0:00:52]} g6 {
[%emt 0:01:30]} 3. Nc3 {[%emt 0:00:44]} Bg7 {[%emt 0:01:00]} 4. e4 {[%emt 0:01:
10]} d6 {[%emt 0:00:35]} 5. d4 {[%emt 0:00:58]} O-O {[%emt 0:01:22]} 6. Be2 {
[%emt 0:00:42]} Bg4 {[%emt 0:05:15]} 7. Be3 {[%emt 0:02:02]} Nbd7 {[%emt 0:07:
39]} 8. h3 {[%emt 0:00:53]} Bxf3 {[%emt 0:00:09]} 9. Bxf3 {[%emt 0:00:03]} c5 {
[%emt 0:01:52]} 10. d5 {[%emt 0:00:32]} a6 {[%emt 0:03:37]} 11. a4 {[%emt 0:01:
17]} Qb6 {[%emt 0:11:23]} 12. Ra3 {[%emt 0:00:24]} e6 {[%emt 0:02:12]} 13. a5 {
[%emt 0:26:45]} Qc7 {[%emt 0:00:57]} 14. g4 {[%emt 0:07:50]} exd5 {[%emt 0:01:
49]} 15. g5 {[%emt 0:00:12]} Ne8 {[%emt 0:07:34]} 16. exd5 {[%emt 0:08:42]} Ne5
{[%emt 0:08:54]} 17. Be2 {[%emt 0:00:47]} Qe7 {[%emt 0:05:14]} 18. Qd2 {
[%emt 0:09:53]} f5 {[%emt 0:08:14]} 19. f4 {[%emt 0:00:53]} Nd7 {[%emt 0:03:11]
} 20. h4 {[%emt 0:07:03]} Nc7 {[%emt 0:01:59]} 21. h5 {[%emt 0:00:29]} Rfe8 {
[%emt 0:00:50]} 22. Rh3 {[%emt 0:00:50]} Rab8 {[%emt 0:02:18]} 23. Na4 {
[%emt 0:03:40]} b5 {[%emt 0:02:01]} 24. axb6 {[%emt 0:04:35]} Nxb6 {[%emt 0:00:
52]} 25. Nxc5 {[%emt 0:06:47]} dxc5 {[%emt 0:05:43]} 26. d6 {[%emt 0:00:03]}
Qd7 {[%emt 0:01:13]} 27. dxc7 {[%emt 0:00:12]} Qxc7 {[%emt 0:00:15]} 28. hxg6 {
[%emt 0:00:28]} hxg6 {[%emt 0:00:47]} 29. Rxa6 {[%emt 0:00:06]} Qb7 {[%emt 0:
01:29]} 30. Ra3 {[%emt 0:05:04]} Qg2 {[%emt 0:00:39]} 31. Bf1 {[%emt 0:01:31]}
Qe4 {[%emt 0:01:58]} 32. Bg2 {[%emt 0:06:53]} Qxc4 {[%emt 0:00:51]} 33. Kf2 {
[%emt 0:02:12]} Red8 {[%emt 0:06:58]} 34. Qc1 {[%emt 0:00:33]} Qxc1 {[%emt 0:
01:12]} 35. Bxc1 {[%emt 0:00:07]} Nc4 {[%emt 0:01:45]} 36. Rab3 {[%emt 0:01:08]
} Nxb2 {[%emt 0:00:59]} 37. Bd5+ {[%emt 0:00:24]} Kf8 38. Be3 0-1

[Event "African Championship"]
[Site "followchess.com"]
[Date "2021.05.20"]
[Round "3"]
[White "Mwali, Chitumbo"]
[Black "Rakotomaharo, Fy Antenaina"]
[Result "0-1"]
[ECO "A09"]
[WhiteElo "2285"]
[BlackElo "2429"]
[PlyCount "62"]
[EventDate "2021.??.??"]
[TimeControl "7200+30"]
[WhiteClock "0:51:36"]
[BlackClock "1:09:09"]

1. Nf3 {[%emt 0:30:20]} d5 {[%emt 0:31:15]} 2. c4 {[%emt 0:03:15]} d4 {[%emt 0:
00:18]} 3. g3 {[%emt 0:05:28]} Nc6 {[%emt 0:01:11]} 4. Bg2 {[%emt 0:00:22]} e5
{[%emt 0:00:06]} 5. d3 {[%emt 0:00:21]} Bb4+ {[%emt 0:00:15]} 6. Nbd2 {[%emt 0:
01:12]} a5 {[%emt 0:00:23]} 7. O-O {[%emt 0:04:15]} Nf6 {[%emt 0:00:40]} 8. Ne1
{[%emt 0:09:38]} O-O {[%emt 0:00:30]} 9. Nc2 {[%emt 0:00:30]} Be7 {[%emt 0:00:
30]} 10. a3 {[%emt 0:00:30]} Nd7 {[%emt 0:00:30]} 11. Rb1 {[%emt 0:00:30]} Nc5
{[%emt 0:00:30]} 12. b3 {[%emt 0:00:30]} Bg4 {[%emt 0:00:30]} 13. Qe1 {[%emt 0:
00:30]} Qd7 {[%emt 0:00:30]} 14. b4 {[%emt 0:00:30]} Na4 {[%emt 0:00:30]} 15.
Nf3 {[%emt 0:00:30]} Nc3 {[%emt 0:00:30]} 16. Rb2 {[%emt 0:00:30]} Bf6 {
[%emt 0:00:30]} 17. b5 {[%emt 0:00:30]} Nd8 {[%emt 0:00:30]} 18. Bd2 {[%emt 0:
00:30]} e4 {[%emt 0:00:30]} 19. dxe4 {[%emt 0:00:30]} Nxe2+ 20. Qxe2 {[%emt 0:
00:30]} d3 {[%emt 0:01:00]} 21. Qe3 {[%emt 0:00:30]} Bxb2 {[%emt 0:00:30]} 22.
Nce1 {[%emt 0:00:30]} Bxf3 {[%emt 0:00:30]} 23. Bxf3 {[%emt 0:00:30]} Ne6 {
[%emt 0:00:30]} 24. e5 {[%emt 0:00:30]} c6 {[%emt 0:00:30]} 25. a4 {[%emt 0:00:
30]} cxb5 {[%emt 0:00:30]} 26. cxb5 {[%emt 0:00:30]} Rad8 {[%emt 0:00:30]} 27.
Be4 {[%emt 0:00:30]} Bxe5 {[%emt 0:00:30]} 28. Nxd3 {[%emt 0:00:30]} Bd4 {
[%emt 0:00:30]} 29. Qf3 {[%emt 0:00:30]} b6 {[%emt 0:00:30]} 30. h4 {[%emt 0:
00:30]} Kh8 {[%emt 0:00:30]} 31. Bf4 {[%emt 0:00:30]} Kg8 {[%emt 0:38:16]} 0-1

[Event "African Championship"]
[Site "followchess.com"]
[Date "2021.05.20"]
[Round "3"]
[White "Okeke Issac"]
[Black "Bwalya, Gillan"]
[Result "0-1"]
[ECO "A05"]
[WhiteElo "2097"]
[BlackElo "2405"]
[PlyCount "86"]
[EventDate "2021.??.??"]
[TimeControl "7200+30"]
[WhiteClock "0:34:26"]
[BlackClock "0:31:46"]

1. Nf3 {[%emt 0:29:35]} Nf6 {[%emt 0:33:04]} 2. b3 {[%emt 0:00:25]} e6 {
[%emt 0:01:48]} 3. Bb2 {[%emt 0:03:11]} b6 {[%emt 0:01:04]} 4. g3 {[%emt 0:00:
11]} Bb7 {[%emt 0:00:18]} 5. Bg2 {[%emt 0:00:20]} c5 {[%emt 0:01:15]} 6. O-O {
[%emt 0:02:19]} Be7 {[%emt 0:00:16]} 7. c4 {[%emt 0:01:44]} O-O {[%emt 0:00:46]
} 8. e3 {[%emt 0:04:46]} d5 {[%emt 0:04:23]} 9. cxd5 {[%emt 0:01:29]} Nxd5 {
[%emt 0:05:55]} 10. d4 {[%emt 0:03:24]} cxd4 {[%emt 0:04:54]} 11. exd4 {
[%emt 0:06:29]} Nc6 {[%emt 0:04:13]} 12. Na3 {[%emt 0:08:12]} Rc8 {[%emt 0:01:
47]} 13. Nc4 {[%emt 0:08:02]} b5 {[%emt 0:03:33]} 14. Nce5 {[%emt 0:00:07]}
Nxe5 {[%emt 0:00:24]} 15. Nxe5 {[%emt 0:06:37]} Nc3 {[%emt 0:17:33]} 16. Bxc3 {
[%emt 0:05:45]} Bxg2 {[%emt 0:00:08]} 17. Kxg2 {[%emt 0:00:55]} Rxc3 {[%emt 0:
00:05]} 18. Kg1 {[%emt 0:04:20]} Qd5 {[%emt 0:07:12]} 19. Rc1 {[%emt 0:12:59]}
Rfc8 {[%emt 0:09:53]} 20. Rxc3 {[%emt 0:07:40]} Rc7 21. Rc5 Rxc5 {[%emt 0:00:
37]} 22. Qg4 Rc3 23. Qh5 {[%emt 0:01:46]} g6 {[%emt 0:01:28]} 24. Qe2 {[%emt 0:
00:54]} Kg7 {[%emt 0:10:16]} 25. Qd2 {[%emt 0:04:28]} b4 {[%emt 0:01:25]} 26.
Qf4 {[%emt 0:04:39]} Bf6 {[%emt 0:02:50]} 27. h4 {[%emt 0:02:52]} h5 {[%emt 0:
02:14]} 28. Re1 {[%emt 0:01:39]} Rc2 {[%emt 0:04:15]} 29. g4 {[%emt 0:06:03]}
hxg4 {[%emt 0:02:16]} 30. h5 {[%emt 0:03:33]} gxh5 {[%emt 0:01:01]} 31. Kh2 {
[%emt 0:00:35]} Rc3 {[%emt 0:01:34]} 32. Re3 {[%emt 0:00:28]} Rxe3 {[%emt 0:02:
25]} 33. fxe3 {[%emt 0:00:09]} Bxe5 {[%emt 0:02:51]} 34. dxe5 {[%emt 0:00:09]}
Qd2+ {[%emt 0:00:10]} 35. Kh1 {[%emt 0:00:40]} Qe1+ {[%emt 0:01:06]} 36. Kg2 {
[%emt 0:00:11]} Qh4 {[%emt 0:00:35]} 37. Kg1 {[%emt 0:00:36]} a5 {[%emt 0:00:
47]} 38. Kg2 {[%emt 0:00:35]} f6 {[%emt 0:01:31]} 39. exf6+ {[%emt 0:00:49]}
Qxf6 {[%emt 0:00:03]} 40. Qc7+ {[%emt 0:00:11]} Kg6 {[%emt 0:00:10]} 41. Qc2+ {
[%emt 0:00:20]} Qf5 {[%emt 0:00:12]} 42. Qc8 {[%emt 0:00:00]} Qf3+ {[%emt 0:00:
00]} 43. Kh2 {[%emt 0:00:00]} Qh3+ {[%emt 0:00:00]} 0-1

[Event "African Championship"]
[Site "followchess.com"]
[Date "2021.05.21"]
[Round "4"]
[White "Adly, Ahmed"]
[Black "Bwalya, Gillan"]
[Result "1-0"]
[ECO "A07"]
[WhiteElo "2615"]
[BlackElo "2405"]
[PlyCount "95"]
[EventDate "2021.??.??"]
[TimeControl "7200+30"]
[WhiteClock "0:17:55"]
[BlackClock "0:19:10"]

1. Nf3 d5 {[%emt 0:31:34]} 2. g3 {[%emt 0:35:27]} Nc6 {[%emt 0:04:09]} 3. d4 {
[%emt 0:04:24]} Bf5 {[%emt 0:05:36]} 4. Bg2 {[%emt 0:01:30]} h6 {[%emt 0:01:52]
} 5. O-O {[%emt 0:01:13]} Nf6 {[%emt 0:00:32]} 6. c4 {[%emt 0:03:07]} e6 {
[%emt 0:00:10]} 7. Ne5 {[%emt 0:04:53]} Nxe5 {[%emt 0:16:11]} 8. dxe5 {[%emt 0:
00:09]} Ne4 {[%emt 0:00:22]} 9. f3 {[%emt 0:12:20]} Nc5 {[%emt 0:04:40]} 10. b4
{[%emt 0:04:41]} Na6 {[%emt 0:03:58]} 11. a3 {[%emt 0:00:15]} dxc4 {[%emt 0:07:
19]} 12. Be3 {[%emt 0:05:57]} c6 {[%emt 0:07:40]} 13. Nd2 {[%emt 0:05:16]} b5 {
[%emt 0:04:36]} 14. f4 {[%emt 0:00:59]} Rc8 {[%emt 0:06:03]} 15. Qc1 {[%emt 0:
10:44]} Be7 {[%emt 0:09:02]} 16. Rd1 {[%emt 0:03:03]} Qc7 {[%emt 0:00:43]} 17.
Ne4 {[%emt 0:07:35]} Bxe4 {[%emt 0:05:09]} 18. Bxe4 {[%emt 0:00:02]} Nb8 {
[%emt 0:00:34]} 19. Rd6 {[%emt 0:04:39]} Bxd6 {[%emt 0:05:29]} 20. exd6 {
[%emt 0:01:01]} Qxd6 {[%emt 0:00:12]} 21. Bc5 {[%emt 0:00:59]} Qc7 {[%emt 0:00:
31]} 22. Qc3 {[%emt 0:03:00]} f5 {[%emt 0:00:20]} 23. Bf3 {[%emt 0:07:42]} Kf7
{[%emt 0:00:38]} 24. a4 {[%emt 0:01:07]} a6 {[%emt 0:01:00]} 25. Bd4 {[%emt 0:
00:39]} Kg6 {[%emt 0:00:40]} 26. Be5 {[%emt 0:00:52]} Qa7+ {[%emt 0:01:39]} 27.
Kh1 {[%emt 0:00:05]} h5 {[%emt 0:01:58]} 28. Rg1 {[%emt 0:00:18]} Rhg8 {
[%emt 0:01:56]} 29. Bd4 {[%emt 0:05:28]} Qe7 {[%emt 0:01:23]} 30. Bc5 {[%emt 0:
02:34]} Qf6 {[%emt 0:00:25]} 31. Bd4 {[%emt 0:00:02]} Qe7 {[%emt 0:01:14]} 32.
Bc5 {[%emt 0:01:17]} Qe8 33. Bxh5+ {[%emt 0:00:39]} Kxh5 {[%emt 0:01:29]} 34.
g4+ {[%emt 0:00:02]} Kg6 {[%emt 0:00:23]} 35. gxf5+ {[%emt 0:00:14]} Kf7 {
[%emt 0:00:07]} 36. Qg3 g6 {[%emt 0:03:20]} 37. fxg6+ {[%emt 0:00:25]} Kg7 {
[%emt 0:00:08]} 38. Bd4+ {[%emt 0:02:27]} Kf8 39. f5 {[%emt 0:00:51]} Qd7 {
[%emt 0:03:01]} 40. Bc5+ {[%emt 0:00:00]} Ke8 {[%emt 0:00:00]} 41. f6 {[%emt 0:
00:00]} Qd5+ {[%emt 0:00:00]} 42. Rg2 {[%emt 0:00:00]} Qd1+ {[%emt 0:00:00]}
43. Bg1 {[%emt 0:00:00]} Kd7 {[%emt 0:00:00]} 44. g7 {[%emt 0:00:00]} c5 {
[%emt 0:00:00]} 45. f7 {[%emt 0:00:00]} Qd5 {[%emt 0:00:00]} 46. Bxc5 {[%emt 0:
00:00]} Qd1+ {[%emt 0:00:00]} 47. Rg1 {[%emt 0:00:00]} Qd5+ {[%emt 0:00:00]}
48. Qf3 {[%emt 0:00:00]} 1-0

[Event "African Championship"]
[Site "followchess.com"]
[Date "2021.05.21"]
[Round "4"]
[White "Beukes, Dante M"]
[Black "Amin, Bassem"]
[Result "0-1"]
[ECO "C11"]
[WhiteElo "2284"]
[BlackElo "2701"]
[PlyCount "84"]
[EventDate "2021.??.??"]
[TimeControl "7200+30"]
[WhiteClock "0:29:36"]
[BlackClock "0:29:06"]

1. e4 e6 {[%emt 0:34:51]} 2. d4 {[%emt 0:31:04]} d5 {[%emt 0:00:07]} 3. Nc3 {
[%emt 0:00:35]} Nf6 {[%emt 0:00:32]} 4. e5 {[%emt 0:00:37]} Nfd7 {[%emt 0:00:
08]} 5. Nce2 {[%emt 0:00:10]} c5 {[%emt 0:00:31]} 6. c3 {[%emt 0:00:05]} Nc6 {
[%emt 0:00:04]} 7. Nf3 {[%emt 0:00:20]} a5 {[%emt 0:01:08]} 8. a4 {[%emt 0:01:
43]} Qb6 {[%emt 0:00:37]} 9. g3 {[%emt 0:01:19]} Be7 {[%emt 0:00:54]} 10. Bg2 {
[%emt 0:03:02]} O-O {[%emt 0:00:36]} 11. O-O {[%emt 0:01:32]} Qa6 {[%emt 0:00:
12]} 12. Re1 {[%emt 0:11:18]} b5 {[%emt 0:00:19]} 13. axb5 {[%emt 0:07:46]}
Qxb5 {[%emt 0:00:02]} 14. dxc5 {[%emt 0:00:47]} Bxc5 {[%emt 0:18:30]} 15. b4 {
[%emt 0:08:51]} Bb6 {[%emt 0:11:15]} 16. Ned4 {[%emt 0:12:53]} Nxd4 {[%emt 0:
08:17]} 17. Nxd4 {[%emt 0:00:16]} Qc4 {[%emt 0:00:45]} 18. Ra3 {[%emt 0:15:49]}
Bb7 {[%emt 0:13:27]} 19. bxa5 {[%emt 0:08:55]} Rxa5 {[%emt 0:05:53]} 20. Rb3 {
[%emt 0:01:54]} Ra1 {[%emt 0:02:57]} 21. Bf1 {[%emt 0:02:32]} Qc7 {[%emt 0:00:
36]} 22. h4 {[%emt 0:08:50]} Rfa8 {[%emt 0:02:21]} 23. Nc2 {[%emt 0:02:00]}
R1a2 {[%emt 0:06:12]} 24. Be3 {[%emt 0:03:19]} Bxe3 {[%emt 0:05:02]} 25. Rxe3 {
[%emt 0:01:07]} Nc5 {[%emt 0:00:06]} 26. Nd4 {[%emt 0:01:24]} Nxb3 {[%emt 0:00:
45]} 27. Qxb3 {[%emt 0:00:08]} Ra1 {[%emt 0:01:35]} 28. Kg2 {[%emt 0:01:20]}
Rb8 {[%emt 0:03:38]} 29. Qc2 {[%emt 0:00:43]} Ba6 {[%emt 0:00:52]} 30. Bxa6 {
[%emt 0:00:33]} Rxa6 {[%emt 0:00:02]} 31. h5 {[%emt 0:00:39]} h6 {[%emt 0:01:
01]} 32. Qe2 {[%emt 0:00:57]} Ra1 {[%emt 0:00:49]} 33. Qg4 {[%emt 0:02:02]} Qc4
{[%emt 0:00:46]} 34. Qe2 {[%emt 0:00:22]} Qa4 {[%emt 0:02:07]} 35. Qc2 {
[%emt 0:00:46]} Qa8 {[%emt 0:02:33]} 36. Qe2 {[%emt 0:00:18]} Rbb1 {[%emt 0:00:
24]} 37. Qg4 {[%emt 0:00:36]} Rg1+ {[%emt 0:01:21]} 38. Kf3 {[%emt 0:00:07]}
Ra2 {[%emt 0:01:23]} 39. Re2 {[%emt 0:01:16]} Ra3 {[%emt 0:05:01]} 40. Re3 {
[%emt 0:00:00]} Qa6 {[%emt 0:00:00]} 41. Qh4 {[%emt 0:00:00]} Ra2 {[%emt 0:00:
00]} 42. Ne2 {[%emt 0:00:00]} Re1 {[%emt 0:00:00]} 0-1